fUSD/lending_fUSD_20251223
["ID","MTS","AMOUNT","RATE_DAILY","PERIOD"]
[399591521,1766525687492,-666.0,0.0002096,2]
[399591522,1766525687503,-18134.8584863,0.00020961,2]
[399591523,1766525687513,-522345.3300232,0.00020961,2]
[399591524,1766525687523,-3254.5159615,0.00020961,2]
[399591525,1766525687534,-151.0,0.00020961,2]
[399591526,1766525687544,-151.0,0.00020961,2]
[399591527,1766525687554,-168.876176,0.00020961,2]
[399591528,1766525687565,-151.0,0.00020961,2]
[399591529,1766525687575,-151.0,0.00020961,2]
[399591530,1766525687584,-151.0,0.00020961,2]
[399591531,1766525687595,-151.0,0.00020961,2]
[399591532,1766525687605,-151.0,0.00020961,2]
[399591533,1766525687616,-151.0,0.00020961,2]
[399591534,1766525687627,-151.0,0.00020961,2]
[399591535,1766525687639,-151.0,0.00020961,2]
[399591536,1766525687649,-151.0,0.00020961,2]
[399591537,1766525687659,-300.0,0.00020972,2]
[399591538,1766525687669,-452.51812449,0.00020973,2]
[399591539,1766525687679,-500.0,0.00020973,2]
[399591540,1766525687690,-500.0,0.00020973,2]
[399591541,1766525687700,-500.0,0.00020973,2]
[399591542,1766525687710,-500.0,0.00020973,2]
[399591543,1766525687720,-500.0,0.00020973,2]
[399591544,1766525687730,-500.0,0.00020973,2]
[399591545,1766525687741,-284.26223188,0.00020973,2]
[399591546,1766525687751,-177.58211641,0.00020973,2]
[399591547,1766525687764,-500.0,0.00020973,2]
[399591548,1766525687775,-500.0,0.00020973,2]
[399591549,1766525687785,-510.66155099,0.00020973,2]
[399591550,1766525687795,-160.24081574,0.00020973,2]
[399591551,1766525687807,-500.77244015,0.00020973,2]
[399591552,1766525687817,-500.0,0.00020973,2]
[399591553,1766525687828,-501.99535785,0.00020973,2]
[399591554,1766525687841,-500.0,0.00020973,2]
[399591555,1766525687851,-500.0,0.00020973,2]
[399591556,1766525687860,-500.0,0.00020973,2]
[399591557,1766525687885,-500.0,0.00020973,2]
[399591558,1766525687899,-500.0,0.00020973,2]
[399591559,1766525687910,-500.0,0.00020973,2]
[399591560,1766525687920,-500.0,0.00020973,2]
[399591561,1766525687931,-500.0,0.00020973,2]
[399591562,1766525687942,-162.32244803,0.00020973,2]
[399591563,1766525687952,-500.0,0.00020973,2]
[399591564,1766525687963,-311.84683956,0.00020973,2]
[399591565,1766525687973,-500.0,0.00020973,2]
[399591566,1766525687983,-500.0,0.00020973,2]
[399591567,1766525687994,-500.0,0.00020973,2]
[399591568,1766525688005,-500.0,0.00020973,2]
[399591569,1766525688014,-500.0,0.00020973,2]
[399591570,1766525688024,-274.50215174,0.00020973,2]
[399591571,1766525688034,-500.0,0.00020973,2]
[399591572,1766525688044,-500.0,0.00020973,2]
[399591573,1766525688054,-267.74550041,0.000213,2]
[399591574,1766525688069,-300.0,0.00021499,2]
[399591575,1766525688080,-24707.90327421,0.000215,2]
[399591576,1766525688095,-1000.0,0.00021521,2]
[399591577,1766525688105,-5000.0,0.00021918,2]
[399591578,1766525688115,-150.0,0.00022,14]
[399591579,1766525688126,-4130.28544346,0.00022,2]
[399591580,1766525688137,-163.53,0.00022,2]
[399591581,1766525688148,-11868.37,0.00022,7]
[399591582,1766525688158,-220.71,0.00022,2]
[399591583,1766525688169,-2430.0,0.00022006,2]
[399591584,1766525688180,-1326.0,0.00022006,2]
[399591585,1766525688191,-1230.30143541,0.00022068,2]
[399591586,1766525688202,-492.74872676,0.000221,2]
[399591587,1766525688212,-239.43117956,0.0002211,2]
[399591588,1766525688223,-2505.03,0.00022282,2]
[399591589,1766525688240,-500.0,0.00022465,2]
[399591590,1766525688251,-552.37,0.00022465,7]
[399591591,1766525688262,-500.0,0.00022563,2]
[399591592,1766525688274,-460.8,0.000226,7]
[399591593,1766525688288,-324.5987684,0.000226,2]
[399591594,1766525688299,-323.0,0.00022706,2]
[399591595,1766525688310,-525.33,0.00022772,2]
[399591596,1766525688322,-202.90189992,0.00023,117]
[399591597,1766525688333,-175.03195294,0.00023116,2]
[399591598,1766525688344,-150.0,0.0002336,2]
[399591599,1766525688354,-1483.27458824,0.0002336,2]
[399591600,1766525688365,-150.0,0.0002336,2]
[399591601,1766525688376,-1226.43702819,0.0002336,2]
[399591602,1766525688387,-150.94,0.00023538,2]
[399591603,1766525688398,-300.0,0.00023547,2]
[399591604,1766525688409,-792.59499025,0.00023547,2]
[399591605,1766525688420,-18134.8584863,0.00023548,2]
[399591606,1766525688431,-150.94,0.00023616,2]
[399591607,1766525688442,-116550.9971408,0.00023626,2]
[399591608,1766525688452,-726.1806677,0.00023647,2]
[399591609,1766525688463,-11868.37,0.000237,7]
[399591610,1766525688474,-26006.0426575,0.00024221,2]
[399591611,1766525688484,-162.0328086,0.00024246,2]
[399591612,1766525688495,-478.551,0.00024404,2]
[399591613,1766525688506,-1263.0,0.00024404,2]
[399591614,1766525688516,-612.0,0.00024404,2]
[399591615,1766525688526,-4806.0,0.00024404,2]
[399591616,1766525688537,-323.0,0.00024516,2]
[399591617,1766525688547,-220.71,0.00024588,2]
[399591618,1766525688558,-151.0,0.00024658,2]
[399591619,1766525688568,-151.0,0.00024658,2]
[399591620,1766525688578,-202.771234,0.00024658,2]
[399591621,1766525688589,-151.0,0.00024658,2]
[399591622,1766525688599,-151.0,0.00024658,2]
[399591623,1766525688609,-151.0,0.00024658,2]
[399591624,1766525688619,-151.0,0.00024658,2]
[399591625,1766525688631,-150.94,0.0002479,2]
[399591626,1766525688642,-500.0,0.00024799,2]
[399591627,1766525688652,-500.0,0.00024799,2]
[399591628,1766525688663,-500.0,0.00024799,2]
[399591629,1766525688674,-151.0,0.000248,7]
[399591630,1766525688685,-151.0,0.000248,7]
[399591631,1766525688696,-151.0,0.000248,7]
[399591632,1766525688707,-151.0,0.000248,7]
[399591633,1766525688717,-281.48164,0.000248,7]
[399591634,1766525688728,-151.0,0.000248,2]
[399591635,1766525688738,-151.0,0.000248,7]
[399591636,1766525688748,-151.0,0.000248,7]
[399591637,1766525688758,-151.0,0.000248,7]
[399591638,1766525688772,-151.0,0.000248,7]
[399591639,1766525688783,-151.0,0.000248,7]
[399591640,1766525688793,-192.475841,0.000248,7]
[399591641,1766525688806,-151.0,0.000248,7]
[399591642,1766525688816,-401277.398405,0.000248,3]
[399591643,1766525688827,-151.0,0.000248,7]
[399591644,1766525688839,-151.0,0.000248,7]
[399591645,1766525688850,-151.0,0.000248,7]
[399591646,1766525688860,-151.0,0.000248,7]
[399591647,1766525688871,-151.0,0.000248,7]
[399591648,1766525688881,-151.0,0.000248,7]
[399591649,1766525688891,-150.0,0.00024873,2]
[399591650,1766525688902,-500.0,0.00024899,2]
[399591651,1766525688913,-500.0,0.00024899,2]
[399591652,1766525688923,-151.0,0.000249,7]
[399591653,1766525688933,-151.0,0.000249,7]
[399591654,1766525688944,-151.0,0.000249,7]
[399591655,1766525688954,-151.0,0.000249,2]
[399591656,1766525688965,-189.833322,0.000249,7]
[399591657,1766525688975,-151.0,0.000249,7]
[399591658,1766525688985,-151.0,0.000249,7]
[399591659,1766525688995,-151.0,0.000249,7]
[399591660,1766525689005,-151.0,0.000249,7]
[399591661,1766525689016,-186.488169,0.000249,7]
[399591662,1766525689027,-151.0,0.000249,7]
[399591663,1766525689037,-151.0,0.000249,7]
[399591664,1766525689050,-203.098236,0.000249,7]
[399591665,1766525689060,-2430.0,0.00025006,2]
[399591666,1766525689070,-1320.0,0.00025006,2]
[399591667,1766525689080,-299.0,0.000252,2]
[399591668,1766525689090,-980.0,0.000252,2]
[399591669,1766525689100,-250.0,0.00025421,2]
[399591670,1766525689110,-460.8,0.000257,7]
[399591671,1766525689120,-267.74550041,0.000257,2]
[399591672,1766525689130,-2916.0,0.00025935,2]
[399591673,1766525689140,-151.87941199,0.0002595,2]
[399591674,1766525689151,-350.0,0.00025968,2]
[399591675,1766525689161,-11868.37,0.00026,7]
[399591676,1766525689172,-18134.8584863,0.00026135,2]
[399591677,1766525689183,-2000.0,0.000263,2]
[399591678,1766525689192,-323.0,0.00026327,2]
[399591679,1766525689203,-412.10943873,0.00026516,2]
[399591680,1766525689214,-361.29,0.0002665,2]
[399591681,1766525689223,-253.48,0.000269,14]
[399591682,1766525689233,-163.37591933,0.00027,2]
[399591683,1766525689244,-175.03195294,0.00027062,2]
[399591684,1766525689256,-224.34,0.00027133,2]
[399591685,1766525689266,-220.71,0.00027177,7]
[399591686,1766525689277,-1000.0,0.00027396,27]
[399591687,1766525689287,-1000.0,0.00027396,16]
[399591688,1766525689297,-185.117655,0.00027397,7]
[399591689,1766525689307,-185.117655,0.00027397,7]
[399591690,1766525689318,-185.117655,0.00027397,7]
[399591691,1766525689327,-185.117655,0.00027397,7]
[399591692,1766525689337,-185.117655,0.00027397,7]
[399591693,1766525689354,-185.117655,0.00027397,7]
[399591694,1766525689364,-185.117655,0.00027397,7]
[399591695,1766525689374,-185.117655,0.00027397,7]
[399591696,1766525689384,-1500.0,0.00027397,16]
[399591697,1766525689395,-500.0,0.00027899,30]
[399591698,1766525689405,-11868.37,0.000279,7]
[399591699,1766525689416,-627.84695604,0.000279,2]
[399591700,1766525689426,-549.10984818,0.000279,2]
[399591701,1766525689436,-201.0,0.00028,120]
[399591702,1766525689447,-323.0,0.00028137,2]
[399591703,1766525689458,-18134.8584863,0.00028722,2]
[399591704,1766525689469,-295.22,0.00028734,2]
[399591705,1766525689480,-1000.0,0.00028811,3]
[399591706,1766525689490,-200.0,0.00029145,2]
[399591707,1766525689500,-152.0,0.00029675,3]
[399591708,1766525689511,-220.71,0.00029765,30]
[399591709,1766525689521,-323.0,0.00029948,2]
[399591710,1766525689531,-2000.0,0.0003,2]
[399591711,1766525689541,-154.0,0.0003,14]
[399591712,1766525689552,-410.0,0.0003,14]
[399591713,1766525689563,-267.74550041,0.000301,2]
[399591714,1766525689574,-211.77563999,0.00030247,5]
[399591715,1766525689585,-1000.0,0.00030365,4]
[399591716,1766525689596,-11868.37,0.000304,7]
[399591717,1766525689606,-154.0,0.00030411,14]
[399591718,1766525689618,-410.0,0.00030411,14]
[399591719,1766525689628,-200.0,0.00030993,2]
[399591720,1766525689639,-460.8,0.00031,7]
[399591721,1766525689650,-496.7,0.00031,30]
[399591722,1766525689660,-175.03195294,0.00031008,2]
[399591723,1766525689670,-361.29,0.00031017,2]
[399591724,1766525689680,-151.87941199,0.0003114,2]
[399591725,1766525689691,-792.59499024,0.00031224,2]
[399591726,1766525689706,-224.34,0.00031283,2]
[399591727,1766525689717,-154.0,0.00031644,14]
[399591728,1766525689727,-410.0,0.00031644,14]
[399591729,1766525689738,-323.0,0.00031758,2]
[399591730,1766525689749,-1000.0,0.00031918,5]
[399591731,1766525689758,-152.0,0.00032092,4]
[399591732,1766525689772,-220.71,0.00032354,30]
[399591733,1766525689782,-150.0,0.00032658,2]
[399591734,1766525689792,-200.62726993,0.00032658,2]
[399591735,1766525689804,-204.03692801,0.00032658,2]
[399591736,1766525689815,-150.0,0.00032658,2]
[399591737,1766525689826,-150.0,0.00032658,2]
[399591738,1766525689837,-150.0,0.00032685,2]
[399591739,1766525689848,-11868.37,0.000327,7]
[399591740,1766525689858,-200.0,0.00032713,2]
[399591741,1766525689869,-500.0,0.00032876,30]
[399591742,1766525689879,-500.0,0.00032876,30]
[399591743,1766525689889,-500.0,0.00032876,30]
[399591744,1766525689900,-500.0,0.00032876,30]
[399591745,1766525689910,-421.35,0.00032876,2]
[399591746,1766525689921,-421.35,0.00032876,2]
[399591747,1766525689932,-421.35,0.00032876,2]
[399591748,1766525689942,-421.35,0.00032876,2]
[399591749,1766525689952,-421.35,0.00032876,2]
[399591750,1766525689962,-421.35,0.00032876,2]
[399591751,1766525689972,-421.35,0.00032876,2]
[399591752,1766525689983,-421.35,0.00032876,2]
[399591753,1766525689993,-421.35,0.00032876,2]
[399591754,1766525690003,-421.35,0.00032876,2]
[399591755,1766525690013,-421.35,0.00032876,2]
[399591756,1766525690023,-421.35,0.00032876,2]
[399591757,1766525690033,-421.35,0.00032876,2]
[399591758,1766525690043,-421.35,0.00032876,2]
[399591759,1766525690054,-421.35,0.00032876,2]
[399591760,1766525690068,-421.35,0.00032876,2]
[399591761,1766525690078,-421.35,0.00032876,2]
[399591762,1766525690088,-421.35,0.00032876,2]
[399591763,1766525690098,-421.35,0.00032876,2]
[399591764,1766525690110,-421.35,0.00032876,2]
[399591765,1766525690122,-421.35,0.00032876,2]
[399591766,1766525690132,-421.35,0.00032876,2]
[399591767,1766525690143,-421.35,0.00032876,2]
[399591768,1766525690153,-421.35082283,0.00032876,2]
[399591769,1766525690163,-506.81347719,0.00032876,2]
[399591770,1766525690174,-1000.0,0.00032876,15]
[399591771,1766525690185,-151.0,0.00032877,31]
[399591772,1766525690195,-153.664837,0.00032877,31]
[399591773,1766525690205,-151.0,0.00032877,31]
[399591774,1766525690216,-151.0,0.00032877,31]
[399591775,1766525690226,-151.0,0.00032877,31]
[399591776,1766525690236,-151.0,0.00032877,31]
[399591777,1766525690247,-151.0,0.00032877,31]
[399591778,1766525690257,-151.0,0.00032877,31]
[399591779,1766525690267,-151.0,0.00032877,31]
[399591780,1766525690278,-151.0,0.00032877,31]
[399591781,1766525690289,-151.0,0.00032877,31]
[399591782,1766525690299,-151.0,0.00032877,31]
[399591783,1766525690309,-151.0,0.00032877,31]
[399591784,1766525690319,-151.0,0.00032877,31]
[399591785,1766525690330,-151.0,0.00032877,31]
[399591786,1766525690340,-151.0,0.00032877,31]
[399591787,1766525690350,-151.0,0.00032877,31]
[399591788,1766525690361,-151.0,0.00032877,31]
[399591789,1766525690371,-151.0,0.00032877,31]
[399591790,1766525690382,-151.0,0.00032877,31]
[399591791,1766525690392,-151.0,0.00032877,31]
[399591792,1766525690402,-187.710044,0.00032877,31]
[399591793,1766525690413,-151.0,0.00032877,31]
[399591794,1766525690423,-151.0,0.00032877,31]
[399591795,1766525690433,-151.0,0.00032877,31]
[399591796,1766525690444,-151.0,0.00032877,31]
[399591797,1766525690454,-151.0,0.00032877,31]
[399591798,1766525690464,-151.0,0.00032877,31]
[399591799,1766525690474,-151.0,0.00032877,31]
[399591800,1766525690484,-151.0,0.00032877,31]
[399591801,1766525690494,-151.0,0.00032877,31]
[399591802,1766525690504,-151.0,0.00032877,31]
[399591803,1766525690514,-151.0,0.00032877,31]
[399591804,1766525690524,-151.0,0.00032877,31]
[399591805,1766525690534,-151.0,0.00032877,31]
[399591806,1766525690544,-151.0,0.00032877,31]
[399591807,1766525690553,-190.294113,0.00032877,31]
[399591808,1766525690563,-151.0,0.00032877,31]
[399591809,1766525690573,-151.0,0.00032877,30]
[399591810,1766525690583,-151.0,0.00032877,30]
[399591811,1766525690593,-301.319988,0.00032877,31]
[399591812,1766525690603,-151.0,0.00032877,10]
[399591813,1766525690612,-151.0,0.00032877,10]
[399591814,1766525690622,-151.0,0.00032877,31]
[399591815,1766525690632,-151.0,0.00032877,31]
[399591816,1766525690641,-151.0,0.00032877,31]
[399591817,1766525690651,-151.0,0.00032877,31]
[399591818,1766525690661,-151.0,0.00032877,31]
[399591819,1766525690671,-151.0,0.00032877,31]
[399591820,1766525690680,-184.092502,0.00032877,31]
[399591821,1766525690690,-151.0,0.00032877,31]
[399591822,1766525690699,-151.0,0.00032877,31]
[399591823,1766525690710,-151.0,0.00032877,31]
[399591824,1766525690720,-151.0,0.00032877,31]
[399591825,1766525690730,-151.0,0.00032877,31]
[399591826,1766525690740,-151.0,0.00032877,31]
[399591827,1766525690750,-151.0,0.00032877,31]
[399591828,1766525690761,-151.0,0.00032877,31]
[399591829,1766525690772,-151.0,0.00032877,31]
[399591830,1766525690783,-151.0,0.00032877,31]
[399591831,1766525690792,-151.0,0.00032877,31]
[399591832,1766525690803,-151.0,0.00032877,31]
[399591833,1766525690813,-151.0,0.00032877,31]
[399591834,1766525690823,-276.863607,0.00032877,31]
[399591835,1766525690832,-151.0,0.00032877,31]
[399591836,1766525690845,-151.0,0.00032877,31]
[399591837,1766525690855,-151.0,0.00032877,31]
[399591838,1766525690865,-151.0,0.00032877,31]
[399591839,1766525690875,-151.0,0.00032877,31]
[399591840,1766525690885,-151.0,0.00032877,31]
[399591841,1766525690895,-151.0,0.00032877,31]
[399591842,1766525690906,-151.0,0.00032877,31]
[399591843,1766525690917,-151.0,0.00032877,31]
[399591844,1766525690927,-151.0,0.00032877,31]
[399591845,1766525690938,-151.0,0.00032877,31]
[399591846,1766525690948,-151.0,0.00032877,31]
[399591847,1766525690958,-151.0,0.00032877,31]
[399591848,1766525690969,-151.0,0.00032877,31]
[399591849,1766525690979,-151.0,0.00032877,31]
[399591850,1766525690989,-151.0,0.00032877,31]
[399591851,1766525690999,-151.0,0.00032877,31]
[399591852,1766525691009,-151.0,0.00032877,31]
[399591853,1766525691019,-151.0,0.00032877,31]
[399591854,1766525691029,-151.0,0.00032877,31]
[399591855,1766525691040,-151.0,0.00032877,31]
[399591856,1766525691050,-151.0,0.00032877,31]
[399591857,1766525691061,-151.0,0.00032877,31]
[399591858,1766525691071,-151.0,0.00032877,31]
[399591859,1766525691082,-151.0,0.00032877,31]
[399591860,1766525691093,-151.0,0.00032877,31]
[399591861,1766525691105,-151.0,0.00032877,31]
[399591862,1766525691115,-151.0,0.00032877,31]
[399591863,1766525691126,-151.0,0.00032877,31]
[399591864,1766525691136,-160.834919,0.00032877,31]
[399591865,1766525691147,-268.54108997,0.00032877,31]
[399591866,1766525691157,-162.390483,0.00032877,31]
[399591867,1766525691167,-151.0,0.00032877,31]
[399591868,1766525691178,-151.0,0.00032877,31]
[399591869,1766525691189,-151.0,0.00032877,31]
[399591870,1766525691553,-151.0,0.00032877,31]
[399591871,1766525691590,-151.0,0.00032877,31]
[399591872,1766525691600,-151.0,0.00032877,31]
[399591873,1766525691610,-151.0,0.00032877,31]
[399591874,1766525691621,-151.0,0.00032877,31]
[399591875,1766525691631,-151.0,0.00032877,31]
[399591876,1766525691642,-151.0,0.00032877,31]
[399591877,1766525691652,-151.0,0.00032877,31]
[399591878,1766525691663,-151.0,0.00032877,31]
[399591879,1766525691675,-151.0,0.00032877,31]
[399591880,1766525691685,-151.0,0.00032877,31]
[399591881,1766525691695,-151.0,0.00032877,31]
[399591882,1766525691705,-151.0,0.00032877,31]
[399591883,1766525691714,-151.0,0.00032877,31]
[399591884,1766525691724,-188.792735,0.00032877,31]
[399591885,1766525691734,-151.0,0.00032877,31]
[399591886,1766525691744,-151.0,0.00032877,31]
[399591887,1766525691754,-151.0,0.00032877,31]
[399591888,1766525691768,-151.0,0.00032877,31]
[399591889,1766525691778,-151.0,0.00032877,31]
[399591890,1766525691788,-185.426008,0.00032877,31]
[399591892,1766525691797,-151.0,0.00032877,31]
[399591893,1766525691809,-151.0,0.00032877,31]
[399591894,1766525691819,-151.0,0.00032877,31]
[399591895,1766525691829,-151.0,0.00032877,31]
[399591896,1766525691841,-248.197329,0.00032877,31]
[399591897,1766525691851,-151.0,0.00032877,31]
[399591898,1766525691861,-151.0,0.00032877,31]
[399591899,1766525691872,-151.0,0.00032877,31]
[399591900,1766525691882,-151.0,0.00032877,31]
[399591901,1766525691893,-184.341232,0.00032877,31]
[399591902,1766525691903,-151.0,0.00032877,31]
[399591903,1766525691914,-151.0,0.00032877,31]
[399591904,1766525691924,-156.947266,0.00032877,31]
[399591905,1766525691934,-151.0,0.00032877,31]
[399591906,1766525691944,-151.0,0.00032877,31]
[399591907,1766525691955,-151.0,0.00032877,31]
[399591908,1766525691965,-151.0,0.00032877,31]
[399591909,1766525691975,-151.0,0.00032877,31]
[399591910,1766525691986,-151.0,0.00032877,31]
[399591911,1766525691996,-151.0,0.00032877,31]
[399591912,1766525692006,-151.0,0.00032877,31]
[399591913,1766525692016,-151.0,0.00032877,31]
[399591914,1766525692027,-151.0,0.00032877,31]
[399591915,1766525692037,-151.0,0.00032877,31]
[399591916,1766525692048,-151.0,0.00032877,31]
[399591917,1766525692058,-151.0,0.00032877,31]
[399591918,1766525692068,-151.0,0.00032877,31]
[399591919,1766525692079,-151.0,0.00032877,31]
[399591920,1766525692089,-151.0,0.00032877,31]
[399591921,1766525692099,-151.0,0.00032877,31]
[399591922,1766525692110,-151.0,0.00032877,31]
[399591923,1766525692120,-151.0,0.00032877,31]
[399591924,1766525692130,-151.0,0.00032877,31]
[399591925,1766525692140,-151.0,0.00032877,31]
[399591926,1766525692150,-163.401945,0.00032877,31]
[399591927,1766525692160,-151.0,0.00032877,31]
[399591928,1766525692171,-151.0,0.00032877,31]
[399591929,1766525692182,-151.0,0.00032877,31]
[399591930,1766525692192,-151.0,0.00032877,31]
[399591931,1766525692203,-151.0,0.00032877,31]
[399591932,1766525692213,-151.0,0.00032877,31]
[399591933,1766525692223,-151.0,0.00032877,31]
[399591934,1766525692234,-151.0,0.00032877,31]
[399591935,1766525692244,-151.0,0.00032877,31]
[399591936,1766525692254,-151.0,0.00032877,31]
[399591937,1766525692265,-151.0,0.00032877,31]
[399591938,1766525692275,-151.0,0.00032877,31]
[399591939,1766525692286,-151.0,0.00032877,31]
[399591940,1766525692295,-151.0,0.00032877,31]
[399591941,1766525692306,-151.0,0.00032877,31]
[399591942,1766525692316,-172.026733,0.00032877,31]
[399591943,1766525692325,-151.0,0.00032877,31]
[399591944,1766525692335,-151.0,0.00032877,31]
[399591945,1766525692345,-151.0,0.00032877,31]
[399591946,1766525692355,-151.0,0.00032877,31]
[399591947,1766525692365,-151.0,0.00032877,31]
[399591948,1766525692375,-156.761126,0.00032877,31]
[399591949,1766525692386,-151.0,0.00032877,31]
[399591950,1766525692396,-151.0,0.00032877,31]
[399591951,1766525692406,-151.0,0.00032877,31]
[399591952,1766525692416,-175.906525,0.00032877,31]
[399591953,1766525692426,-151.0,0.00032877,31]
[399591954,1766525692436,-175.906525,0.00032877,31]
[399591955,1766525692447,-250.443745,0.00032877,31]
[399591956,1766525692457,-151.0,0.00032877,31]
[399591957,1766525692468,-175.906525,0.00032877,31]
[399591958,1766525692477,-180.392936,0.00032877,31]
[399591959,1766525692487,-175.906525,0.00032877,31]
[399591960,1766525692499,-151.0,0.00032877,31]
[399591961,1766525692508,-175.906525,0.00032877,31]
[399591962,1766525692518,-151.0,0.00032877,31]
[399591963,1766525692528,-180.392936,0.00032877,31]
[399591964,1766525692538,-175.906525,0.00032877,31]
[399591965,1766525692548,-174.658186,0.00032877,31]
[399591966,1766525692558,-180.392936,0.00032877,31]
[399591967,1766525692569,-175.906525,0.00032877,31]
[399591968,1766525692579,-175.906525,0.00032877,31]
[399591969,1766525692589,-180.392936,0.00032877,31]
[399591970,1766525692600,-180.392936,0.00032877,31]
[399591971,1766525692610,-175.906525,0.00032877,31]
[399591972,1766525692620,-220.879254,0.00032877,31]
[399591973,1766525692630,-180.392936,0.00032877,31]
[399591974,1766525692641,-175.906525,0.00032877,31]
[399591975,1766525692650,-180.392936,0.00032877,31]
[399591976,1766525692660,-175.906525,0.00032877,31]
[399591977,1766525692671,-180.392936,0.00032877,31]
[399591978,1766525692681,-175.906525,0.00032877,31]
[399591979,1766525692691,-180.392936,0.00032877,31]
[399591980,1766525692702,-180.392936,0.00032877,31]
[399591981,1766525692713,-180.392936,0.00032877,31]
[399591982,1766525692723,-180.392936,0.00032877,31]
[399591983,1766525692733,-151.0,0.00032877,31]
[399591984,1766525692744,-151.0,0.00032877,31]
[399591985,1766525692754,-180.180477,0.00032877,31]
[399591986,1766525692770,-157.394598,0.00032877,31]
[399591987,1766525692781,-157.394598,0.00032877,31]
[399591988,1766525692791,-157.394598,0.00032877,31]
[399591989,1766525692802,-157.394598,0.00032877,31]
[399591990,1766525692814,-157.394598,0.00032877,31]
[399591991,1766525692824,-157.394598,0.00032877,31]
[399591992,1766525692835,-157.394598,0.00032877,31]
[399591993,1766525692846,-157.394598,0.00032877,31]
[399591994,1766525692856,-157.394598,0.00032877,31]
[399591995,1766525692865,-157.394598,0.00032877,31]
[399591996,1766525692876,-157.394598,0.00032877,31]
[399591997,1766525692886,-157.394598,0.00032877,31]
[399591998,1766525692896,-151.0,0.00032877,31]
[399591999,1766525692906,-151.0,0.00032877,31]
[399592000,1766525692917,-151.0,0.00032877,31]
[399592001,1766525692927,-151.0,0.00032877,31]
[399592002,1766525692938,-151.0,0.00032877,31]
[399592003,1766525692948,-151.0,0.00032877,31]
[399592004,1766525692959,-151.0,0.00032877,31]
[399592005,1766525692968,-151.0,0.00032877,31]
[399592006,1766525692979,-151.0,0.00032877,31]
[399592007,1766525692989,-151.0,0.00032877,31]
[399592008,1766525692998,-151.0,0.00032877,31]
[399592009,1766525693008,-151.0,0.00032877,31]
[399592010,1766525693018,-151.0,0.00032877,31]
[399592011,1766525693028,-151.0,0.00032877,31]
[399592012,1766525693038,-151.0,0.00032877,31]
[399592013,1766525693048,-151.0,0.00032877,31]
[399592014,1766525693059,-151.0,0.00032877,31]
[399592015,1766525693070,-151.0,0.00032877,31]
[399592016,1766525693080,-151.0,0.00032877,31]
[399592017,1766525693090,-151.0,0.00032877,31]
[399592018,1766525693100,-151.0,0.00032877,31]
[399592019,1766525693111,-151.0,0.00032877,31]
[399592020,1766525693121,-205.256417,0.00032877,31]
[399592021,1766525693131,-151.0,0.00032877,31]